fUST/lending_fUST_20240801
["ID","MTS","AMOUNT","RATE_DAILY","PERIOD"]
[333767588,1722463847686,-500.0,0.00013698,2]
[333767589,1722463847695,-282.76566051,0.00013698,2]
[333767590,1722463847704,-500.0,0.00013698,2]
[333767591,1722463847716,-500.0,0.00013698,2]
[333767592,1722463847726,-1415.31,0.00013698,2]
[333767593,1722463847736,-500.0,0.00013698,2]
[333767594,1722463847746,-500.0,0.00013698,2]
[333767595,1722463847755,-151.0,0.00013698,2]
[333767596,1722463847765,-1039.26,0.00013698,2]
[333767597,1722463847775,-500.0,0.00013698,2]
[333767598,1722463847785,-500.0,0.00013698,2]
[333767599,1722463847795,-863.63,0.00013698,2]
[333767600,1722463847804,-500.0,0.00013698,2]
[333767601,1722463847814,-504.08,0.00013698,2]
[333767602,1722463847823,-500.0,0.00013698,2]
[333767603,1722463847833,-151.0,0.00013698,2]
[333767604,1722463847843,-1202.35,0.00013698,2]
[333767605,1722463847852,-151.0,0.00013698,2]
[333767606,1722463847862,-500.0,0.00013698,2]
[333767607,1722463847871,-500.0,0.00013698,2]
[333767608,1722463847881,-546.48,0.00013698,2]
[333767609,1722463847891,-500.0,0.00013698,2]
[333767610,1722463847902,-500.0,0.00013698,2]
[333767611,1722463847911,-593.72,0.00013698,2]
[333767612,1722463847920,-500.0,0.00013698,2]
[333767613,1722463847930,-500.0,0.00013698,2]
[333767614,1722463847941,-500.0,0.00013698,2]
[333767615,1722463847951,-1147.99,0.00013698,2]
[333767616,1722463847961,-500.0,0.00013698,2]
[333767617,1722463847970,-1175.77,0.00013698,2]
[333767618,1722463847979,-500.0,0.00013698,2]
[333767619,1722463847989,-848.54,0.00013698,2]
[333767620,1722463847999,-500.0,0.00013698,2]
[333767621,1722463848008,-112.94064398,0.00013698,2]
[333767622,1722463848056,-420.32935602,0.00013698,2]
[333767623,1722463848066,-500.0,0.00013698,2]
[333767624,1722463848076,-1980.64,0.00013698,2]
[333767625,1722463848086,-500.0,0.00013698,2]
[333767626,1722463848096,-1562.73,0.00013698,2]
[333767627,1722463848105,-500.0,0.00013698,2]
[333767628,1722463848115,-972.16,0.00013698,2]
[333767629,1722463848125,-500.0,0.00013698,2]
[333767630,1722463848135,-500.0,0.00013698,2]
[333767631,1722463848144,-500.0,0.00013698,2]
[333767632,1722463848157,-531.52,0.00013698,2]
[333767633,1722463848167,-500.0,0.00013698,2]
[333767634,1722463848176,-1164.14,0.00013698,2]
[333767635,1722463848186,-592.14,0.00013698,2]
[333767636,1722463848196,-500.0,0.00013698,2]
[333767637,1722463848205,-500.0,0.00013698,2]
[333767638,1722463848215,-500.0,0.00013698,2]
[333767639,1722463848226,-500.0,0.00013698,2]
[333767640,1722463848235,-231.332173,0.00013698,2]
[333767641,1722463848246,-806.44,0.00013698,2]
[333767642,1722463848256,-231.332173,0.00013698,2]
[333767643,1722463848268,-1191.12,0.00013698,2]
[333767644,1722463848277,-1028.29,0.00013698,2]
[333767645,1722463848290,-500.0,0.00013698,2]
[333767646,1722463848299,-500.0,0.00013698,2]
[333767647,1722463848309,-2185.8,0.00013698,2]
[333767648,1722463848319,-500.0,0.00013698,2]
[333767649,1722463848328,-991.41,0.00013698,2]
[333767650,1722463848338,-518.83,0.00013698,2]
[333767651,1722463848348,-500.0,0.00013698,2]
[333767652,1722463848358,-500.0,0.00013698,2]
[333767653,1722463848368,-500.0,0.00013698,2]
[333767654,1722463848379,-1017.72,0.00013698,2]
[333767655,1722463848389,-500.0,0.00013698,2]
[333767656,1722463848404,-519.39971363,0.00013698,2]
[333767657,1722463848414,-500.0,0.00013698,2]
[333767658,1722463848424,-500.0,0.00013698,2]
[333767659,1722463848434,-500.0,0.00013698,2]
[333767660,1722463848444,-500.0,0.00013698,2]
[333767661,1722463848455,-500.0,0.00013698,2]
[333767662,1722463848466,-695.32,0.00013698,2]
[333767663,1722463848477,-500.0,0.00013698,2]
[333767664,1722463848486,-778.96,0.00013698,2]
[333767665,1722463848496,-500.0,0.00013698,2]
[333767666,1722463848507,-7306.49,0.00013698,2]
[333767667,1722463848517,-775.51,0.00013698,2]
[333767668,1722463848611,-500.0,0.00013698,2]
[333767669,1722463848634,-500.0,0.00013698,2]
[333767670,1722463848644,-500.0,0.00013698,2]
[333767671,1722463848655,-500.0,0.00013698,2]
[333767672,1722463848664,-500.0,0.00013698,2]
[333767673,1722463848674,-500.0,0.00013698,2]
[333767674,1722463848684,-500.0,0.00013698,2]
[333767675,1722463848694,-500.0,0.00013698,2]
[333767676,1722463848704,-500.0,0.00013698,2]
[333767677,1722463848714,-500.0,0.00013698,2]
[333767678,1722463848724,-3259.63,0.00013698,2]
[333767679,1722463848734,-3259.63,0.00013698,2]
[333767680,1722463848745,-3259.63,0.00013698,2]
[333767681,1722463848755,-3259.63,0.00013698,2]
[333767682,1722463848765,-3259.63,0.00013698,2]
[333767683,1722463848775,-3259.63,0.00013698,2]
[333767684,1722463848786,-3259.63,0.00013698,2]
[333767685,1722463848796,-500.0,0.00013698,2]
[333767686,1722463848805,-1328.28,0.00013698,2]
[333767687,1722463848815,-500.0,0.00013698,2]
[333767688,1722463848825,-3259.63,0.00013698,2]
[333767689,1722463848835,-3259.63,0.00013698,2]
[333767690,1722463848846,-6391.92,0.00013698,2]
[333767691,1722463848855,-3259.63,0.00013698,2]
[333767692,1722463848865,-3259.63,0.00013698,2]
[333767693,1722463848875,-3259.63,0.00013698,2]
[333767694,1722463848886,-500.0,0.00013698,2]
[333767695,1722463848897,-3259.63,0.00013698,2]
[333767696,1722463848909,-3259.63,0.00013698,2]
[333767697,1722463848919,-3259.63,0.00013698,2]
[333767698,1722463848931,-500.0,0.00013698,2]
[333767699,1722463848941,-3259.63,0.00013698,2]
[333767700,1722463848951,-912.46,0.00013698,2]
[333767701,1722463848961,-500.0,0.00013698,2]
[333767702,1722463848971,-191.60181732,0.00013698,2]
[333767703,1722463848980,-2662.8,0.00013698,2]
[333767704,1722463848990,-500.0,0.00013698,2]
[333767705,1722463849001,-500.0,0.00013698,2]
[333767706,1722463849011,-271.80768515,0.00013698,2]
[333767707,1722463849021,-568.12,0.00013698,2]
[333767708,1722463849031,-500.0,0.00013698,2]
[333767709,1722463849041,-500.0,0.00013698,2]
[333767710,1722463849052,-1495.15,0.00013698,2]
[333767711,1722463849062,-500.0,0.00013698,2]
[333767712,1722463849073,-507.30241532,0.00013698,2]
[333767713,1722463849084,-1126.0,0.00013698,2]
[333767714,1722463849094,-550.26,0.00013698,2]
[333767715,1722463849105,-500.0,0.00013698,2]
[333767716,1722463849115,-500.0,0.00013698,2]
[333767717,1722463849124,-500.0,0.00013698,2]
[333767718,1722463849134,-1300.56,0.00013698,2]
[333767719,1722463849144,-500.0,0.00013698,2]
[333767720,1722463849155,-500.0,0.00013698,2]
[333767721,1722463849164,-500.0,0.00013698,2]
[333767722,1722463849174,-500.0,0.00013698,2]
[333767723,1722463849185,-500.0,0.00013698,2]
[333767724,1722463849195,-500.0,0.00013698,2]
[333767725,1722463849205,-2799.91,0.00013698,2]
[333767726,1722463849216,-500.0,0.00013698,2]
[333767727,1722463849225,-157.347476,0.00013699,2]
[333767728,1722463849236,-151.0,0.00013699,2]
[333767729,1722463849246,-449.9237577,0.00013699,2]
[333767730,1722463849255,-264.88325096,0.00013699,2]
[333767731,1722463849266,-150.112233,0.000137,2]
[333767732,1722463849275,-531.48,0.00013961,2]
[333767733,1722463849285,-531.48,0.00013961,2]
[333767734,1722463849294,-3259.63,0.0001397,2]
[333767735,1722463849304,-531.48,0.00013971,2]
[333767736,1722463849313,-531.48,0.00013971,2]
[333767737,1722463849324,-3259.63,0.00013971,2]
[333767738,1722463849334,-3259.63,0.00013971,2]
[333767739,1722463849344,-3259.63,0.00013971,2]
[333767740,1722463849354,-3259.63,0.00013971,2]
[333767741,1722463849364,-3259.63,0.00013971,2]
[333767742,1722463849374,-3259.63,0.00013971,2]
[333767743,1722463849384,-3259.84157,0.00013971,2]
[333767744,1722463849396,-314.77886917,0.00013972,2]
[333767745,1722463849411,-500.0,0.00013972,2]
[333767746,1722463849421,-500.0,0.00013972,2]
[333767747,1722463849431,-500.0,0.00013972,2]
[333767748,1722463849443,-500.0,0.00013972,2]
[333767749,1722463849453,-500.0,0.00013972,2]
[333767750,1722463849462,-500.0,0.00013972,2]
[333767751,1722463849471,-640.86,0.00013972,2]
[333767752,1722463849483,-998.08,0.00013972,2]
[333767753,1722463849492,-500.0,0.00013972,2]
[333767754,1722463849502,-287.85659771,0.00013972,2]
[333767755,1722463849512,-500.0,0.00013972,2]
[333767756,1722463849522,-477.78932021,0.00013972,2]
[333767757,1722463849532,-500.0,0.00013972,2]
[333767758,1722463849542,-500.0,0.00013972,2]
[333767759,1722463849551,-500.0,0.00013972,2]
[333767760,1722463849561,-500.0,0.00013972,2]
[333767761,1722463849571,-157.444211,0.00013972,2]
[333767762,1722463849582,-500.0,0.00013972,2]
[333767763,1722463849591,-512.46,0.00013972,2]
[333767764,1722463849601,-500.0,0.00013972,2]
[333767765,1722463849611,-500.0,0.00013972,2]
[333767766,1722463849622,-920.96,0.00013972,2]
[333767767,1722463849631,-500.0,0.00013972,2]
[333767768,1722463849641,-500.0,0.00013972,2]
[333767769,1722463849652,-547.54,0.00013972,2]
[333767770,1722463849662,-585.33335433,0.00013972,2]
[333767771,1722463849671,-500.0,0.00013972,2]
[333767772,1722463849681,-500.0,0.00013972,2]
[333767773,1722463849690,-463.78656,0.00013972,2]
[333767774,1722463849700,-183.88346565,0.00013972,2]
[333767775,1722463849709,-1134.04,0.00013972,2]
[333767776,1722463849719,-500.0,0.00013972,2]
[333767777,1722463849729,-500.0,0.00013972,2]
[333767778,1722463849738,-554.3,0.00013972,2]
[333767779,1722463849748,-919.870319,0.00013972,2]
[333767780,1722463849757,-500.0,0.00013972,2]
[333767781,1722463849767,-500.0,0.00013972,2]
[333767782,1722463849777,-500.0,0.00013972,2]
[333767783,1722463849787,-919.870319,0.00013972,2]
[333767784,1722463849796,-500.0,0.00013972,2]
[333767785,1722463849806,-500.0,0.00013972,2]
[333767786,1722463849815,-500.0,0.00013972,2]
[333767787,1722463849825,-523.51,0.00013972,2]
[333767788,1722463849835,-546.03,0.00013972,2]
[333767789,1722463849844,-151.0,0.00013972,2]
[333767790,1722463849853,-504.87347054,0.00013972,2]
[333767791,1722463849864,-646.14,0.00013972,2]
[333767792,1722463849874,-151.0,0.00013972,2]
[333767793,1722463849883,-1160.53,0.00013972,2]
[333767794,1722463849893,-621.23,0.00013972,2]
[333767795,1722463849903,-500.0,0.00013972,2]
[333767796,1722463849913,-500.0,0.00013972,2]
[333767797,1722463849924,-500.0,0.00013972,2]
[333767798,1722463849937,-500.0,0.00013972,2]
[333767799,1722463849946,-1495.85,0.00013972,2]
[333767800,1722463849955,-558.33,0.00013972,2]
[333767801,1722463849965,-500.0,0.00013972,2]
[333767802,1722463849975,-500.0,0.00013972,2]
[333767803,1722463849985,-500.0,0.00013972,2]
[333767804,1722463849996,-151.0,0.00013972,2]
[333767805,1722463850007,-151.0,0.00013972,2]
[333767806,1722463850017,-500.0,0.00013972,2]
[333767807,1722463850027,-500.0,0.00013972,2]
[333767808,1722463850037,-1008.379596,0.00013972,2]
[333767809,1722463850046,-500.0,0.00013972,2]
[333767810,1722463850055,-1008.379596,0.00013972,2]
[333767811,1722463850065,-500.0,0.00013972,2]
[333767812,1722463850074,-500.0,0.00013972,2]
[333767813,1722463850084,-602.72,0.00013972,2]
[333767814,1722463850096,-500.0,0.00013972,2]
[333767815,1722463850106,-500.0,0.00013972,2]
[333767816,1722463850115,-907.52,0.00013972,2]
[333767817,1722463850127,-500.0,0.00013972,2]
[333767818,1722463850139,-762.98,0.00013972,2]
[333767819,1722463850150,-500.0,0.00013972,2]
[333767820,1722463850163,-151.0,0.00013972,2]
[333767821,1722463850174,-500.0,0.00013972,2]
[333767822,1722463850188,-1579.16,0.00013972,2]
[333767823,1722463850197,-389.347887,0.00013972,2]
[333767824,1722463850209,-500.0,0.00013972,2]
[333767825,1722463850219,-500.0,0.00013972,2]
[333767826,1722463850230,-389.347887,0.00013972,2]
[333767827,1722463850241,-1325.34,0.00013972,2]
[333767828,1722463850251,-764.98,0.00013972,2]
[333767829,1722463850262,-6779.11,0.00013972,2]
[333767830,1722463850273,-500.0,0.00013972,2]
[333767831,1722463850283,-500.0,0.00013972,2]
[333767832,1722463850294,-500.0,0.00013972,2]
[333767833,1722463850304,-500.0,0.00013972,2]
[333767834,1722463850314,-2513.45,0.00013972,2]
[333767835,1722463850324,-328.85603228,0.00013972,2]
[333767836,1722463850334,-869.74,0.00013972,2]
[333767837,1722463850346,-501.05,0.00013972,2]
[333767838,1722463850357,-2665.63,0.00013972,2]
[333767839,1722463850367,-500.0,0.00013972,2]
[333767840,1722463850378,-1250.17,0.00013972,2]
[333767841,1722463850388,-500.0,0.00013972,2]
[333767842,1722463850405,-4931.28,0.00013972,2]
[333767843,1722463850415,-500.0,0.00013972,2]
[333767844,1722463850424,-1415.31,0.00013972,2]
[333767845,1722463850435,-151.0,0.00013972,2]
[333767846,1722463850448,-1039.26,0.00013972,2]
[333767847,1722463850459,-500.0,0.00013972,2]
[333767848,1722463850471,-500.0,0.00013972,2]
[333767849,1722463850483,-863.63,0.00013972,2]
[333767850,1722463850493,-504.08,0.00013972,2]
[333767851,1722463850505,-500.0,0.00013972,2]
[333767852,1722463850515,-1202.35,0.00013972,2]
[333767853,1722463850527,-151.0,0.00013972,2]
[333767854,1722463850536,-151.0,0.00013972,2]
[333767855,1722463850627,-500.0,0.00013972,2]
[333767856,1722463850636,-500.0,0.00013972,2]
[333767857,1722463850646,-546.48,0.00013972,2]
[333767858,1722463850658,-500.0,0.00013972,2]
[333767859,1722463850668,-151.0,0.00013972,2]
[333767860,1722463850677,-593.72,0.00013972,2]
[333767861,1722463850688,-500.0,0.00013972,2]
[333767862,1722463850697,-1147.99,0.00013972,2]
[333767863,1722463850706,-1175.77,0.00013972,2]
[333767864,1722463850717,-500.0,0.00013972,2]
[333767865,1722463850728,-848.54,0.00013972,2]
[333767866,1722463850739,-500.0,0.00013972,2]
[333767867,1722463850751,-533.27,0.00013972,2]
[333767868,1722463850760,-500.0,0.00013972,2]
[333767869,1722463850772,-1980.64,0.00013972,2]
[333767870,1722463850782,-243.55391346,0.00013972,2]
[333767871,1722463850795,-1562.73,0.00013972,2]
[333767872,1722463850805,-500.0,0.00013972,2]
[333767873,1722463850814,-972.16,0.00013972,2]
[333767874,1722463850824,-500.0,0.00013972,2]
[333767875,1722463850834,-531.52,0.00013972,2]
[333767876,1722463850844,-1164.14,0.00013972,2]
[333767877,1722463850856,-592.14,0.00013972,2]
[333767878,1722463850867,-500.0,0.00013972,2]
[333767879,1722463850880,-231.332173,0.00013972,2]
[333767880,1722463850890,-363.900754,0.00013972,2]
[333767881,1722463850899,-806.44,0.00013972,2]
[333767882,1722463850911,-231.332173,0.00013972,2]
[333767883,1722463850921,-1191.12,0.00013972,2]
[333767884,1722463850931,-1028.29,0.00013972,2]
[333767885,1722463850941,-363.900754,0.00013972,2]
[333767886,1722463850951,-500.0,0.00013972,2]
[333767887,1722463850961,-2185.8,0.00013972,2]
[333767888,1722463850971,-991.41,0.00013972,2]
[333767889,1722463850981,-518.83,0.00013972,2]
[333767890,1722463850991,-1017.72,0.00013972,2]
[333767891,1722463851002,-500.0,0.00013972,2]
[333767892,1722463851011,-500.0,0.00013972,2]
[333767893,1722463851021,-179.62631996,0.00013972,2]
[333767894,1722463851032,-500.0,0.00013972,2]
[333767895,1722463851042,-500.0,0.00013972,2]
[333767896,1722463851051,-695.32,0.00013972,2]
[333767897,1722463851062,-500.0,0.00013972,2]
[333767898,1722463851072,-778.96,0.00013972,2]
[333767899,1722463851082,-151.0,0.00013972,2]
[333767900,1722463851092,-7306.49,0.00013972,2]
[333767901,1722463851103,-151.0,0.00013972,2]
[333767902,1722463851114,-775.51,0.00013972,2]
[333767903,1722463851124,-151.0,0.00013972,2]
[333767904,1722463851136,-1208.652296,0.00013972,2]
[333767905,1722463851147,-500.0,0.00013972,2]
[333767906,1722463851160,-500.0,0.00013972,2]
[333767907,1722463851170,-1208.652296,0.00013972,2]
[333767908,1722463851179,-1328.28,0.00013972,2]
[333767909,1722463851190,-6391.92,0.00013972,2]
[333767910,1722463851199,-912.46,0.00013972,2]
[333767911,1722463851209,-500.0,0.00013972,2]
[333767912,1722463851219,-2662.8,0.00013972,2]
[333767913,1722463851229,-500.0,0.00013972,2]
[333767914,1722463851239,-568.12,0.00013972,2]
[333767915,1722463851249,-500.0,0.00013972,2]
[333767916,1722463851258,-500.0,0.00013972,2]
[333767917,1722463851268,-1495.15,0.00013972,2]
[333767918,1722463851277,-1126.0,0.00013972,2]
[333767919,1722463851288,-550.26,0.00013972,2]
[333767920,1722463851298,-218.639948,0.00013972,2]
[333767921,1722463851307,-218.639948,0.00013972,2]
[333767922,1722463851318,-500.0,0.00013972,2]
[333767923,1722463851327,-1300.56,0.00013972,2]
[333767924,1722463851337,-193.340999,0.00013972,2]
[333767925,1722463851347,-500.0,0.00013972,2]
[333767926,1722463851357,-193.340999,0.00013972,2]
[333767927,1722463851366,-500.0,0.00013972,2]
[333767928,1722463851376,-2799.91,0.00013972,2]
[333767929,1722463851385,-500.0,0.00013972,2]
[333767930,1722463851396,-150.112233,0.00014,2]
[333767931,1722463851412,-616.0,0.00014,2]
[333767932,1722463851422,-4456.06180624,0.00014005,2]
[333767933,1722463851432,-200.0,0.00014123,2]
[333767934,1722463851442,-151.0,0.00014225,2]
[333767935,1722463851452,-212.616945,0.00014225,2]
[333767936,1722463851462,-212.616945,0.00014225,2]
[333767937,1722463851474,-152.182676,0.00014225,2]
[333767938,1722463851484,-151.0,0.00014225,2]
[333767939,1722463851496,-151.0,0.00014225,2]
[333767940,1722463851508,-531.48,0.00014235,2]
[333767941,1722463851518,-531.48,0.00014235,2]
[333767942,1722463851527,-531.48,0.00014235,2]
[333767943,1722463851536,-463.78656,0.00014236,2]
[333767944,1722463851546,-463.78656,0.00014236,2]
[333767945,1722463851556,-919.870319,0.00014236,2]
[333767946,1722463851566,-919.870319,0.00014236,2]
[333767947,1722463851575,-151.0,0.00014236,2]
[333767948,1722463851586,-151.0,0.00014236,2]
[333767949,1722463851598,-151.0,0.00014236,2]
[333767950,1722463851619,-151.0,0.00014236,2]
[333767951,1722463851632,-531.48,0.00014245,2]
[333767952,1722463851643,-531.48,0.00014245,2]
[333767953,1722463851657,-522.57147356,0.00014245,2]
[333767954,1722463851846,-8.90852644,0.00014245,2]
[333767955,1722463851857,-3093.65437512,0.00014246,2]
[333767956,1722463851868,-501.47,0.00014246,2]
[333767957,1722463851878,-500.0,0.00014246,2]
[333767958,1722463851889,-500.0,0.00014246,2]
[333767959,1722463851898,-500.0,0.00014246,2]
[333767960,1722463851909,-500.0,0.00014246,2]
[333767961,1722463851918,-640.86,0.00014246,2]
[333767962,1722463851927,-998.08,0.00014246,2]
[333767963,1722463851937,-500.0,0.00014246,2]
[333767964,1722463851947,-500.0,0.00014246,2]
[333767965,1722463851957,-500.0,0.00014246,2]
[333767966,1722463851967,-500.0,0.00014246,2]
[333767967,1722463851978,-500.0,0.00014246,2]
[333767968,1722463851987,-212.616945,0.00014246,2]
[333767969,1722463851998,-212.616945,0.00014246,2]
[333767970,1722463852008,-151.0,0.00014246,2]
[333767971,1722463852017,-500.0,0.00014246,2]
[333767972,1722463852027,-512.46,0.00014246,2]
[333767973,1722463852037,-186.23607238,0.00014246,2]
[333767974,1722463852046,-920.96,0.00014246,2]
[333767975,1722463852056,-500.0,0.00014246,2]
[333767976,1722463852066,-500.0,0.00014246,2]
[333767977,1722463852076,-547.54,0.00014246,2]
[333767978,1722463852086,-500.0,0.00014246,2]
[333767979,1722463852097,-151.0,0.00014246,2]
[333767980,1722463852107,-1134.04,0.00014246,2]
[333767981,1722463852117,-252.18930181,0.00014246,2]
[333767982,1722463852127,-269.62295581,0.00014246,2]
[333768002,1722464974356,1000.0,0.00023099,120]
[333768051,1722465032502,-200.0,0.00012065,2]
[333768053,1722465032512,-124.87774632,0.00012165,2]
[333768116,1722465038239,-42.57003068,0.00012165,2]
[333768117,1722465038252,-300.0,0.00012286,2]
[333768118,1722465038268,-9216.73515432,0.00012287,2]
[333768119,1722465038284,-599.88693815,0.00012287,2]
[333768120,1722465038296,-333.95878176,0.00012287,2]
[333768121,1722465038309,-9937.17425784,0.00012287,2]
[333768122,1722465038419,-4812.24486793,0.00012287,2]
[333768123,1722465038430,-173.093222,0.00012986,2]
[333768124,1722465038440,-420.0,0.00013514,2]
[333768125,1722465038450,-150.112233,0.000136,2]
[333768126,1722465038459,-999.70439571,0.00013686,2]
[333768127,1722465038469,-21019.98109936,0.00013688,2]
[333768128,1722465038480,-10934.77274788,0.00013688,2]
[333768129,1722465038492,-5384.2409426,0.00013688,2]
[333768130,1722465038502,-64018.6666064,0.00013688,2]
[333768131,1722465038511,-13700.9036135,0.00013688,2]
[333768165,1722465040398,-714.78080813,0.00013688,2]
[333768168,1722465040442,-335.75467565,0.00013688,2]
[333768169,1722465040454,-14747.30661905,0.00013688,2]
[333768170,1722465040467,-45046.44118845,0.00013688,2]
[333768171,1722465040479,-249.993024,0.00013688,2]
[333768172,1722465040493,-19227.08900063,0.00013688,2]
[333768173,1722465040504,-3172.79999997,0.00013688,2]
[333768174,1722465040522,-158879.59749662,0.00013688,2]
[333768175,1722465040532,-838.33,0.00013697,2]
[333768176,1722465040542,-838.33,0.00013697,2]
[333768177,1722465040552,-39250.27286652,0.00013698,5]
[333768178,1722465040561,-374.4466312,0.00013698,2]
[333768179,1722465040570,-500.0,0.00013698,2]
[333768180,1722465040579,-500.0,0.00013698,2]
[333768181,1722465040589,-520.00000001,0.00013698,2]
[333768182,1722465040597,-500.0,0.00013698,2]
[333768183,1722465040608,-500.0,0.00013698,2]
[333768184,1722465040618,-512.62054526,0.00013698,2]
[333768185,1722465040627,-500.0,0.00013698,2]
[333768186,1722465040636,-500.0,0.00013698,2]
[333768187,1722465040645,-500.0,0.00013698,2]
[333768188,1722465040654,-403.60933229,0.00013698,2]
[333768189,1722465040664,-500.0,0.00013698,2]
[333768190,1722465040674,-500.0,0.00013698,2]
[333768191,1722465040683,-325.36337819,0.00013698,2]
[333768192,1722465040692,-529.67477119,0.00013698,2]
[333768193,1722465040704,-500.0,0.00013698,2]
[333768194,1722465040718,-500.0,0.00013698,2]
[333768195,1722465040732,-500.0,0.00013698,2]
[333768196,1722465040747,-500.0,0.00013698,2]
[333768197,1722465040759,-603.30505383,0.00013698,2]
[333768198,1722465040771,-500.0,0.00013698,2]
[333768199,1722465040784,-332.66442941,0.00013698,2]
[333768200,1722465040801,-281.62126416,0.00013698,2]
[333768201,1722465040814,-500.0,0.00013698,2]
[333768202,1722465040829,-500.0,0.00013698,2]
[333768203,1722465040844,-500.0,0.00013698,2]
[333768204,1722465040859,-500.0,0.00013698,2]
[333768205,1722465040873,-538.93854303,0.00013698,2]
[333768206,1722465040886,-500.0,0.00013698,2]
[333768207,1722465040897,-500.0,0.00013698,2]
[333768208,1722465040912,-500.0,0.00013698,2]
[333768209,1722465040925,-500.0,0.00013698,2]
[333768210,1722465040940,-500.0,0.00013698,2]
[333768211,1722465040953,-500.0,0.00013698,2]
[333768212,1722465040966,-500.0,0.00013698,2]
[333768213,1722465040979,-500.0,0.00013698,2]
[333768214,1722465040994,-500.0,0.00013698,2]
[333768215,1722465041008,-412.48993703,0.00013698,2]
[333768216,1722465041021,-500.0,0.00013698,2]
[333768217,1722465041036,-500.0,0.00013698,2]
[333768218,1722465041050,-445.9911003,0.00013698,2]
[333768219,1722465041064,-500.0,0.00013698,2]
[333768220,1722465041075,-500.0,0.00013698,2]
[333768221,1722465041086,-500.0,0.00013698,2]
[333768222,1722465041096,-500.0,0.00013698,2]
[333768223,1722465041110,-500.0,0.00013698,2]
[333768224,1722465041123,-500.0,0.00013698,2]
[333768225,1722465041135,-500.0,0.00013698,2]
[333768226,1722465041149,-500.0,0.00013698,2]
[333768227,1722465041160,-500.0,0.00013698,2]
[333768228,1722465041174,-500.0,0.00013698,2]
[333768229,1722465041188,-500.0,0.00013698,2]
[333768230,1722465041200,-500.0,0.00013698,2]
[333768231,1722465041213,-500.0,0.00013698,2]
[333768232,1722465041225,-500.0,0.00013698,2]
[333768233,1722465041235,-513.21474084,0.00013698,2]
[333768234,1722465041246,-500.0,0.00013698,2]
[333768235,1722465041257,-500.0,0.00013698,2]
[333768236,1722465041269,-500.0,0.00013698,2]
[333768237,1722465041280,-503.63334197,0.00013698,2]
[333768238,1722465041292,-500.0,0.00013698,2]
[333768239,1722465041304,-500.0,0.00013698,2]
[333768240,1722465041315,-531.11048598,0.00013698,2]
[333768241,1722465041327,-318.30549013,0.00013698,2]
[333768242,1722465041338,-500.0,0.00013698,2]
[333768243,1722465041349,-505.20120875,0.00013698,2]
[333768244,1722465041365,-500.0,0.00013698,2]
[333768245,1722465041377,-500.0,0.00013698,2]
[333768246,1722465041390,-500.0,0.00013698,2]
[333768247,1722465041401,-673.03,0.00013698,2]
[333768248,1722465041413,-504.23442038,0.00013698,2]
[333768249,1722465041426,-502.14058153,0.00013698,2]
[333768250,1722465041437,-500.0,0.00013698,2]
[333768251,1722465041448,-500.0,0.00013698,2]
[333768252,1722465041460,-500.0,0.00013698,2]